fUSD/lending_fUSD_20240521
["ID","MTS","AMOUNT","RATE_DAILY","PERIOD"]
[327690809,1716319841416,-318.62421547,0.0003041,6]
[327690811,1716319841426,-572.42,0.0003041,6]
[327690813,1716319841436,-500.0,0.0003041,6]
[327690815,1716319841446,-500.0,0.0003041,6]
[327690817,1716319841456,-545.00477055,0.0003041,6]
[327690819,1716319841466,-500.0,0.0003041,6]
[327690821,1716319841475,-500.0,0.0003041,6]
[327690823,1716319841485,-500.0,0.0003041,6]
[327690825,1716319841494,-500.0,0.0003041,6]
[327690827,1716319841504,-500.0,0.0003041,6]
[327690829,1716319841514,-500.0,0.0003041,2]
[327690831,1716319841523,-500.0,0.0003041,6]
[327690833,1716319841532,-500.0,0.0003041,6]
[327690835,1716319841542,-500.0,0.0003041,6]
[327690837,1716319841553,-500.0,0.0003041,6]
[327690839,1716319841563,-535.88101893,0.0003041,6]
[327690841,1716319841573,-500.0,0.0003041,6]
[327690842,1716319841582,-500.0,0.0003041,6]
[327690845,1716319841592,-500.0,0.0003041,6]
[327690846,1716319841602,-505.52434045,0.0003041,6]
[327690847,1716319841611,-163.26729809,0.0003041,6]
[327690848,1716319841621,-500.0,0.0003041,6]
[327690849,1716319841630,-500.0,0.0003041,6]
[327690850,1716319841639,-500.0,0.0003041,6]
[327690851,1716319841649,-500.0,0.0003041,6]
[327690852,1716319841659,-500.0,0.0003041,6]
[327690853,1716319841668,-500.0,0.0003041,6]
[327690854,1716319841677,-500.0,0.0003041,6]
[327690855,1716319841686,-500.0,0.0003041,6]
[327690856,1716319841696,-500.0,0.0003041,6]
[327690858,1716319841706,-500.0,0.0003041,6]
[327690860,1716319841715,-257.90270513,0.0003041,6]
[327690862,1716319841725,-500.0,0.0003041,6]
[327690864,1716319841734,-500.0,0.0003041,6]
[327690866,1716319841743,-500.0,0.0003041,6]
[327690868,1716319841752,-500.0,0.0003041,6]
[327690870,1716319841761,-500.0,0.0003041,6]
[327690872,1716319841771,-500.0,0.0003041,6]
[327690874,1716319841779,-500.0,0.0003041,6]
[327690876,1716319841789,-500.0,0.0003041,6]
[327690878,1716319841799,-500.0,0.0003041,6]
[327690880,1716319841810,-500.0,0.0003041,6]
[327690882,1716319841821,-500.0,0.0003041,6]
[327690884,1716319841831,-500.0,0.0003041,6]
[327690886,1716319841840,-500.0,0.0003041,6]
[327690887,1716319841850,-324.77786954,0.0003041,6]
[327690889,1716319841860,-500.0,0.0003041,6]
[327690892,1716319841870,-500.0,0.0003041,6]
[327690894,1716319841880,-500.0,0.0003041,6]
[327690895,1716319841889,-500.0,0.0003041,6]
[327690897,1716319841899,-762.2,0.0003041,6]
[327690899,1716319841909,-562.12,0.0003041,6]
[327690902,1716319841919,-500.0,0.0003041,6]
[327690903,1716319841928,-500.0,0.0003041,6]
[327690906,1716319841938,-500.0,0.0003041,6]
[327690907,1716319841949,-500.0,0.0003041,6]
[327690909,1716319841960,-500.0,0.0003041,6]
[327690912,1716319841972,-523.92,0.0003041,6]
[327690914,1716319841982,-500.0,0.0003041,6]
[327690916,1716319841993,-500.0,0.0003041,6]
[327690918,1716319842003,-500.0,0.0003041,6]
[327690920,1716319842014,-500.0,0.0003041,6]
[327690922,1716319842024,-500.0,0.0003041,6]
[327690924,1716319842034,-500.0,0.0003041,6]
[327690926,1716319842048,-500.0,0.0003041,6]
[327690928,1716319842063,-500.0,0.0003041,6]
[327690930,1716319842074,-502.63,0.0003041,6]
[327690932,1716319842086,-500.0,0.0003041,6]
[327690934,1716319842096,-500.0,0.0003041,6]
[327690936,1716319842106,-500.0,0.0003041,6]
[327690938,1716319842116,-500.0,0.0003041,6]
[327690940,1716319842126,-434.56054457,0.0003041,6]
[327690942,1716319842136,-500.0,0.0003041,6]
[327690944,1716319842147,-500.0,0.0003041,6]
[327690945,1716319842157,-500.0,0.0003041,6]
[327690947,1716319842167,-500.0,0.0003041,6]
[327690949,1716319842177,-566.7,0.0003041,6]
[327690951,1716319842187,-500.0,0.0003041,6]
[327690952,1716319842197,-500.0,0.0003041,6]
[327690953,1716319842207,-500.0,0.0003041,6]
[327690954,1716319842217,-500.0,0.0003041,6]
[327690955,1716319842227,-500.0,0.0003041,6]
[327690956,1716319842238,-500.0,0.0003041,6]
[327690957,1716319842248,-500.0,0.0003041,6]
[327690958,1716319842258,-500.0,0.0003041,6]
[327690960,1716319842268,-641.67,0.0003041,6]
[327690961,1716319842278,-500.0,0.0003041,6]
[327690962,1716319842288,-500.0,0.0003041,6]
[327690963,1716319842298,-592.21,0.0003041,6]
[327690964,1716319842313,-500.0,0.0003041,6]
[327690965,1716319842322,-500.0,0.0003041,6]
[327690967,1716319842333,-500.0,0.0003041,6]
[327690969,1716319842342,-500.0,0.0003041,6]
[327690971,1716319842351,-500.18,0.0003041,6]
[327690973,1716319842361,-500.0,0.0003041,6]
[327690975,1716319842371,-792.17,0.0003041,6]
[327690976,1716319842382,-500.0,0.0003041,6]
[327690977,1716319842392,-873.14,0.0003041,6]
[327690978,1716319842402,-686.96,0.0003041,6]
[327690979,1716319842411,-539.2,0.0003041,6]
[327690980,1716319842421,-813.32,0.0003041,6]
[327690981,1716319842431,-500.0,0.0003041,6]
[327690982,1716319842440,-500.0,0.0003041,6]
[327690983,1716319842451,-500.0,0.0003041,6]
[327690984,1716319842460,-500.0,0.0003041,6]
[327690985,1716319842470,-500.0,0.0003041,6]
[327690986,1716319842480,-500.0,0.0003041,6]
[327690987,1716319842490,-920.21,0.0003041,6]
[327690988,1716319842500,-557.19,0.0003041,6]
[327690989,1716319842510,-500.0,0.0003041,6]
[327690990,1716319842520,-500.0,0.0003041,6]
[327690991,1716319842530,-500.0,0.0003041,6]
[327690992,1716319842539,-671.12,0.0003041,6]
[327690993,1716319842549,-500.0,0.0003041,6]
[327690994,1716319842565,-190.52,0.0003041,6]
[327690995,1716319842576,-523.42,0.0003041,6]
[327690996,1716319842587,-500.0,0.0003041,6]
[327690997,1716319842597,-500.0,0.0003041,6]
[327690998,1716319842607,-500.0,0.0003041,6]
[327690999,1716319842617,-500.0,0.0003041,6]
[327691000,1716319842628,-745.96,0.0003041,6]
[327691001,1716319842638,-551.99,0.0003041,6]
[327691002,1716319842648,-500.0,0.0003041,6]
[327691003,1716319842658,-500.0,0.0003041,6]
[327691004,1716319842667,-500.0,0.0003041,6]
[327691005,1716319842677,-768.62,0.0003041,6]
[327691006,1716319842687,-500.0,0.0003041,6]
[327691007,1716319842696,-500.0,0.0003041,6]
[327691008,1716319842706,-500.0,0.0003041,6]
[327691009,1716319842715,-540.09,0.0003041,6]
[327691010,1716319842725,-572.71,0.0003041,6]
[327691011,1716319842734,-500.0,0.0003041,6]
[327691012,1716319842744,-500.0,0.0003041,6]
[327691013,1716319842754,-500.0,0.0003041,6]
[327691014,1716319842764,-662.66,0.0003041,6]
[327691015,1716319842774,-742.65,0.0003041,6]
[327691016,1716319842784,-500.0,0.0003041,6]
[327691017,1716319842794,-500.0,0.0003041,6]
[327691018,1716319842808,-2612.64,0.0003041,6]
[327691019,1716319842817,-500.0,0.0003041,6]
[327691020,1716319842826,-500.0,0.0003041,6]
[327691021,1716319842836,-743.29,0.0003041,6]
[327691022,1716319842845,-611.46,0.0003041,6]
[327691023,1716319842854,-500.0,0.0003041,6]
[327691024,1716319842864,-500.0,0.0003041,6]
[327691025,1716319842874,-500.0,0.0003041,6]
[327691026,1716319842884,-500.0,0.0003041,6]
[327691028,1716319842900,-500.0,0.0003041,6]
[327691030,1716319842911,-500.0,0.0003041,6]
[327691031,1716319842922,-500.0,0.0003041,6]
[327691032,1716319842932,-593.26,0.0003041,6]
[327691033,1716319842943,-632.71,0.0003041,6]
[327691034,1716319842959,-500.0,0.0003041,6]
[327691035,1716319842969,-500.0,0.0003041,6]
[327691036,1716319842979,-1571.83,0.0003041,6]
[327691037,1716319842990,-704.51,0.0003041,6]
[327691039,1716319843000,-500.0,0.0003041,6]
[327691040,1716319843010,-762.6,0.0003041,6]
[327691041,1716319843296,-605.72,0.0003041,6]
[327691042,1716319843310,-500.0,0.0003041,6]
[327691043,1716319843319,-11742.0,0.0003041,6]
[327691044,1716319843328,-2257.79,0.0003041,6]
[327691045,1716319843338,-908.79,0.0003041,6]
[327691046,1716319843347,-500.0,0.0003041,6]
[327691047,1716319843356,-914.89,0.0003041,6]
[327691048,1716319843366,-1823.72,0.0003041,6]
[327691049,1716319843376,-500.0,0.0003041,6]
[327691050,1716319843385,-500.0,0.0003041,6]
[327691051,1716319843395,-500.0,0.0003041,6]
[327691052,1716319843405,-5286.96,0.0003041,6]
[327691053,1716319843415,-722.37,0.0003041,6]
[327691054,1716319843424,-522.15,0.0003041,6]
[327691055,1716319843437,-1041.35,0.0003041,6]
[327691056,1716319843447,-1342.11,0.0003041,6]
[327691057,1716319843457,-865.28,0.0003041,6]
[327691058,1716319843466,-3359.55,0.0003041,6]
[327691059,1716319843476,-500.0,0.0003041,6]
[327691060,1716319843485,-500.0,0.0003041,6]
[327691061,1716319843495,-1087.22,0.0003041,6]
[327691062,1716319843506,-1524.46,0.0003041,6]
[327691063,1716319843515,-500.0,0.0003041,6]
[327691064,1716319843525,-662.9,0.0003041,6]
[327691065,1716319843535,-671.94,0.0003041,6]
[327691066,1716319843545,-500.0,0.0003041,6]
[327691067,1716319843556,-500.0,0.0003041,6]
[327691068,1716319843566,-7591.7,0.0003041,6]
[327691069,1716319843576,-588.79,0.0003041,6]
[327691070,1716319843586,-1591.5,0.0003041,6]
[327691071,1716319843596,-500.0,0.0003041,6]
[327691072,1716319843606,-767.13,0.0003041,6]
[327691073,1716319843616,-576.76,0.0003041,6]
[327691074,1716319843626,-2915.73,0.0003041,6]
[327691075,1716319843635,-862.21,0.0003041,6]
[327691076,1716319843645,-1265.45,0.0003041,6]
[327691077,1716319843655,-402.14,0.0003041,6]
[327691078,1716319843665,-2643.47,0.0003041,6]
[327691079,1716319843675,-1331.67,0.0003041,6]
[327691080,1716319843685,-21685.76,0.0003041,6]
[327691081,1716319843695,-723.33,0.0003041,6]
[327691082,1716319843705,-500.0,0.0003041,6]
[327691083,1716319843715,-594.2,0.0003041,6]
[327691084,1716319843725,-500.0,0.0003041,6]
[327691085,1716319843735,-500.0,0.0003041,6]
[327691086,1716319843745,-1150.01,0.0003041,6]
[327691087,1716319843755,-500.0,0.0003041,6]
[327691088,1716319843764,-5180.9,0.0003041,6]
[327691089,1716319843774,-500.0,0.0003041,6]
[327691090,1716319843784,-500.0,0.0003041,6]
[327691091,1716319843795,-500.0,0.0003041,6]
[327691092,1716319843806,-500.0,0.0003041,6]
[327691093,1716319843816,-500.0,0.0003041,6]
[327691094,1716319843826,-859.65,0.0003041,6]
[327691095,1716319843835,-1207.35,0.0003041,6]
[327691096,1716319843845,-500.0,0.0003041,6]
[327691097,1716319843855,-569.35,0.0003041,6]
[327691098,1716319843864,-500.0,0.0003041,6]
[327691099,1716319843874,-500.0,0.0003041,6]
[327691100,1716319843884,-500.0,0.0003041,6]
[327691101,1716319843894,-500.0,0.0003041,6]
[327691102,1716319843904,-3472.29,0.0003041,6]
[327691103,1716319843916,-614.59,0.0003041,6]
[327691104,1716319843925,-500.0,0.0003041,6]
[327691105,1716319843935,-808.72,0.0003041,6]
[327691106,1716319843946,-6643.61,0.0003041,6]
[327691107,1716319843956,-664.34,0.0003041,6]
[327691108,1716319843969,-500.0,0.0003041,6]
[327691109,1716319843979,-974.91,0.0003041,6]
[327691110,1716319843989,-500.0,0.0003041,6]
[327691111,1716319843999,-500.0,0.0003041,6]
[327691112,1716319844010,-500.0,0.0003041,6]
[327691113,1716319844021,-665.19,0.0003041,6]
[327691114,1716319844031,-1102.83,0.0003041,6]
[327691115,1716319844044,-576.8,0.0003041,6]
[327691116,1716319844053,-763.45,0.0003041,6]
[327691117,1716319844064,-1694.45,0.0003041,6]
[327691118,1716319844074,-1228.79,0.0003041,6]
[327691119,1716319844085,-625.26,0.0003041,6]
[327691120,1716319844095,-500.0,0.0003041,6]
[327691121,1716319844106,-500.0,0.0003041,6]
[327691122,1716319844116,-1880.4,0.0003041,6]
[327691123,1716319844125,-948.0,0.0003041,6]
[327691124,1716319844135,-958.6,0.0003041,6]
[327691125,1716319844146,-500.0,0.0003041,6]
[327691126,1716319844156,-500.0,0.0003041,6]
[327691127,1716319844166,-1703.93,0.0003041,6]
[327691128,1716319844176,-500.0,0.0003041,6]
[327691129,1716319844186,-1760.89,0.0003041,6]
[327691130,1716319844196,-707.65,0.0003041,6]
[327691131,1716319844205,-551.46,0.0003041,6]
[327691132,1716319844215,-2277.84,0.0003041,6]
[327691133,1716319844225,-1826.47,0.0003041,6]
[327691134,1716319844234,-500.0,0.0003041,6]
[327691135,1716319844244,-953.69,0.0003041,6]
[327691136,1716319844254,-916.9,0.0003041,6]
[327691137,1716319844263,-1051.53,0.0003041,6]
[327691138,1716319844273,-1845.35,0.0003041,6]
[327691139,1716319844283,-500.0,0.0003041,6]
[327691140,1716319844293,-500.0,0.0003041,6]
[327691141,1716319844302,-756.05,0.0003041,6]
[327691142,1716319844313,-500.0,0.0003041,6]
[327691145,1716319844323,-4282.49,0.0003041,6]
[327691146,1716319844333,-1900.39,0.0003041,6]
[327691147,1716319844343,-1095.6,0.0003041,6]
[327691148,1716319844353,-500.0,0.0003041,6]
[327691149,1716319844374,-500.0,0.0003041,6]
[327691150,1716319844386,-500.0,0.0003041,6]
[327691151,1716319844397,-1245.85,0.0003041,6]
[327691152,1716319844408,-506.71,0.0003041,6]
[327691153,1716319844418,-1581.78,0.0003041,6]
[327691154,1716319844428,-1135.85,0.0003041,6]
[327691155,1716319844439,-3279.55,0.0003041,6]
[327691156,1716319844449,-500.0,0.0003041,6]
[327691157,1716319844459,-500.0,0.0003041,6]
[327691158,1716319844470,-1943.13,0.0003041,6]
[327691159,1716319844481,-913.34,0.0003041,6]
[327691160,1716319844491,-4103.23,0.0003041,6]
[327691161,1716319844502,-500.0,0.0003041,6]
[327691162,1716319844512,-5134.38,0.0003041,6]
[327691163,1716319844522,-500.0,0.0003041,6]
[327691164,1716319844532,-1151.3,0.0003041,6]
[327691165,1716319844542,-500.0,0.0003041,6]
[327691166,1716319844553,-952.7,0.0003041,6]
[327691167,1716319844564,-12022.45,0.0003041,6]
[327691168,1716319844574,-1816.49,0.0003041,6]
[327691169,1716319844585,-1992.8,0.0003041,6]
[327691170,1716319844596,-500.0,0.0003041,6]
[327691171,1716319844607,-4923.69,0.0003041,6]
[327691172,1716319844618,-3549.72,0.0003041,6]
[327691173,1716319844629,-555.96,0.0003041,6]
[327691174,1716319844639,-500.0,0.0003041,6]
[327691175,1716319844650,-500.0,0.0003041,6]
[327691176,1716319844660,-1954.7,0.0003041,6]
[327691177,1716319844670,-689.1,0.0003041,6]
[327691178,1716319844681,-1006.45,0.0003041,6]
[327691179,1716319844691,-500.0,0.0003041,6]
[327691180,1716319844701,-2252.81,0.0003041,6]
[327691181,1716319844711,-507.93843371,0.0003041,6]
[327691182,1716319844721,-500.0,0.0003041,6]
[327691183,1716319844732,-1215.22,0.0003041,6]
[327691184,1716319844742,-500.0,0.0003041,6]
[327691185,1716319844752,-500.0,0.0003041,6]
[327691186,1716319844762,-500.0,0.0003041,6]
[327691187,1716319844772,-1501.12,0.0003041,6]
[327691188,1716319844782,-500.0,0.0003041,6]
[327691189,1716319844791,-500.0,0.0003041,6]
[327691190,1716319844801,-517.03,0.0003041,6]
[327691191,1716319844814,-1277.99,0.0003041,6]
[327691192,1716319844823,-500.0,0.0003041,6]
[327691193,1716319844833,-500.0,0.0003041,6]
[327691194,1716319844843,-779.5,0.0003041,6]
[327691195,1716319844852,-500.0,0.0003041,6]
[327691196,1716319844862,-500.0,0.0003041,6]
[327691197,1716319844872,-500.0,0.0003041,6]
[327691198,1716319844882,-2804.63,0.0003041,6]
[327691199,1716319844892,-500.0,0.0003041,6]
[327691200,1716319844902,-500.0,0.0003041,6]
[327691201,1716319844912,-500.0,0.0003041,2]
[327691202,1716319844922,-500.0,0.0003041,6]
[327691203,1716319844933,-500.0,0.0003041,6]
[327691204,1716319844943,-1003.92,0.0003041,6]
[327691205,1716319844954,-739.07,0.0003041,6]
[327691206,1716319844967,-500.0,0.0003041,6]
[327691207,1716319844977,-31400.69,0.0003041,6]
[327691208,1716319844987,-500.0,0.0003041,6]
[327691209,1716319844999,-500.0,0.0003041,6]
[327691210,1716319845008,-500.0,0.0003041,6]
[327691211,1716319845022,-756.05,0.0003041,6]
[327691212,1716319845035,-402.02294914,0.0003041,6]
[327691213,1716319845049,-500.0,0.0003041,6]
[327691214,1716319845061,-500.0,0.0003041,6]
[327691215,1716319845071,-1719.76,0.0003041,6]
[327691216,1716319845081,-1742.07,0.0003041,6]
[327691217,1716319845090,-1158.21,0.0003041,6]
[327691218,1716319845101,-1608.06,0.0003041,6]
[327691219,1716319845111,-500.0,0.0003041,6]
[327691220,1716319845120,-500.0,0.0003041,6]
[327691221,1716319845130,-500.0,0.0003041,6]
[327691222,1716319845139,-500.0,0.0003041,6]
[327691223,1716319845149,-500.0,0.0003041,6]
[327691224,1716319845160,-500.0,0.0003041,6]
[327691225,1716319845170,-500.0,0.0003041,6]
[327691226,1716319845180,-500.0,0.0003041,6]
[327691227,1716319845190,-7362.71,0.0003041,5]
[327691228,1716319845200,-7229.02,0.00030541,5]
[327691229,1716319845211,-829.83,0.00030575,2]
[327691230,1716319845220,-194.01308406,0.00030584,2]
[327691231,1716319845230,-178.09131204,0.00030584,2]
[327691232,1716319845240,-2983.61315924,0.00030584,2]
[327691233,1716319845250,-1164.9295538,0.000306,21]
[327691234,1716319845260,-160.62683901,0.00030659,2]
[327691235,1716319845270,-500.0,0.00030684,6]
[327691236,1716319845280,-500.0,0.00030684,6]
[327691237,1716319845290,-500.0,0.00030684,6]
[327691238,1716319845300,-500.0,0.00030684,6]
[327691239,1716319845313,-500.0,0.00030684,6]
[327691240,1716319845323,-500.0,0.00030684,6]
[327691241,1716319845333,-500.0,0.00030684,6]
[327691242,1716319845342,-326.32587461,0.00030684,6]
[327691243,1716319845352,-500.0,0.00030684,6]
[327691244,1716319845362,-500.0,0.00030684,6]
[327691245,1716319845371,-508.53,0.00030684,6]
[327691246,1716319845381,-500.0,0.00030684,6]
[327691247,1716319845391,-500.0,0.00030684,6]
[327691248,1716319845401,-500.0,0.00030684,6]
[327691249,1716319845412,-500.0,0.00030684,6]
[327691250,1716319845422,-500.0,0.00030684,6]
[327691251,1716319845432,-500.0,0.00030684,6]
[327691252,1716319845442,-500.0,0.00030684,6]
[327691253,1716319845452,-500.0,0.00030684,6]
[327691254,1716319845462,-660.7,0.00030684,6]
[327691255,1716319845472,-500.0,0.00030684,6]
[327691256,1716319845482,-500.0,0.00030684,6]
[327691257,1716319845491,-500.0,0.00030684,6]
[327691258,1716319845500,-500.0,0.00030684,6]
[327691259,1716319845510,-500.0,0.00030684,6]
[327691260,1716319845520,-500.0,0.00030684,6]
[327691261,1716319845530,-500.0,0.00030684,6]
[327691262,1716319845539,-250.28338297,0.00030684,6]
[327691263,1716319845549,-500.0,0.00030684,6]
[327691264,1716319845560,-500.0,0.00030684,6]
[327691265,1716319845571,-500.0,0.00030684,6]
[327691266,1716319845581,-500.0,0.00030684,6]
[327691267,1716319845591,-500.0,0.00030684,6]
[327691268,1716319845601,-500.0,0.00030684,6]
[327691269,1716319845611,-500.0,0.00030684,6]
[327691270,1716319845623,-500.0,0.00030684,6]
[327691271,1716319845633,-500.0,0.00030684,6]
[327691272,1716319845644,-500.0,0.00030684,6]
[327691273,1716319845656,-500.0,0.00030684,6]
[327691274,1716319845666,-500.0,0.00030684,6]
[327691275,1716319845677,-500.0,0.00030684,6]
[327691276,1716319845687,-500.0,0.00030684,6]
[327691277,1716319845697,-500.0,0.00030684,6]
[327691278,1716319845707,-630.8,0.00030684,6]
[327691279,1716319845716,-572.42,0.00030684,6]
[327691280,1716319845726,-500.0,0.00030684,6]
[327691281,1716319845737,-500.0,0.00030684,6]
[327691282,1716319845747,-500.0,0.00030684,6]
[327691283,1716319845757,-500.0,0.00030684,6]
[327691284,1716319845768,-500.0,0.00030684,6]
[327691285,1716319845778,-500.0,0.00030684,6]
[327691286,1716319845789,-500.0,0.00030684,2]
[327691287,1716319845799,-500.0,0.00030684,6]
[327691288,1716319845812,-500.0,0.00030684,6]
[327691289,1716319845823,-500.0,0.00030684,6]
[327691290,1716319845833,-322.5,0.00030684,6]
[327691291,1716319845844,-500.0,0.00030684,6]
[327691292,1716319845854,-500.0,0.00030684,6]
[327691293,1716319845863,-500.0,0.00030684,6]
[327691294,1716319845873,-500.0,0.00030684,6]
[327691295,1716319845883,-500.0,0.00030684,6]
[327691296,1716319845894,-500.0,0.00030684,6]
[327691297,1716319845904,-500.0,0.00030684,6]
[327691298,1716319845914,-500.0,0.00030684,6]
[327691299,1716319845923,-500.0,0.00030684,6]
[327691300,1716319845934,-500.0,0.00030684,6]
[327691301,1716319845944,-500.0,0.00030684,6]
[327691302,1716319845957,-500.0,0.00030684,6]
[327691303,1716319845967,-500.0,0.00030684,6]
[327691304,1716319845977,-500.0,0.00030684,6]
[327691305,1716319845986,-500.0,0.00030684,6]
[327691306,1716319845996,-500.0,0.00030684,6]
[327691307,1716319846007,-500.0,0.00030684,6]
[327691308,1716319846017,-500.0,0.00030684,6]
[327691309,1716319846029,-500.0,0.00030684,6]
[327691310,1716319846039,-500.0,0.00030684,6]
[327691311,1716319846050,-500.0,0.00030684,6]
[327691314,1716319846063,-500.0,0.00030684,6]
[327691317,1716319846073,-500.0,0.00030684,6]
[327691319,1716319846083,-500.0,0.00030684,6]
[327691320,1716319846092,-500.0,0.00030684,6]
[327691322,1716319846101,-500.0,0.00030684,6]
[327691324,1716319846111,-500.0,0.00030684,6]
[327691326,1716319846121,-500.0,0.00030684,6]
[327691328,1716319846131,-500.0,0.00030684,6]
[327691330,1716319846141,-762.2,0.00030684,6]
[327691332,1716319846151,-562.12,0.00030684,6]
[327691334,1716319846161,-500.0,0.00030684,6]
[327691336,1716319846172,-500.0,0.00030684,6]
[327691338,1716319846181,-500.0,0.00030684,6]
[327691339,1716319846191,-286.88333466,0.00030684,6]
[327691341,1716319846201,-500.0,0.00030684,6]
[327691343,1716319846211,-523.92,0.00030684,6]
[327691344,1716319846220,-500.0,0.00030684,6]
[327691346,1716319846230,-500.0,0.00030684,6]
[327691348,1716319846240,-500.0,0.00030684,6]
[327691350,1716319846249,-500.0,0.00030684,6]
[327691351,1716319846259,-500.0,0.00030684,6]
[327691353,1716319846268,-500.0,0.00030684,6]
[327691355,1716319846278,-500.0,0.00030684,6]
[327691357,1716319846288,-500.0,0.00030684,6]
[327691358,1716319846298,-502.63,0.00030684,6]
[327691360,1716319846310,-500.0,0.00030684,6]
[327691362,1716319846319,-500.0,0.00030684,6]
[327691363,1716319846329,-500.0,0.00030684,6]
[327691365,1716319846340,-500.0,0.00030684,6]
[327691367,1716319846351,-500.0,0.00030684,6]
[327691369,1716319846360,-500.0,0.00030684,6]
[327691370,1716319846370,-500.0,0.00030684,6]
[327691373,1716319846386,-500.0,0.00030684,6]
[327691375,1716319846400,-566.7,0.00030684,6]
[327691377,1716319846414,-500.0,0.00030684,6]
[327691379,1716319846427,-500.0,0.00030684,6]
[327691381,1716319846440,-500.0,0.00030684,6]
[327691383,1716319846453,-500.0,0.00030684,6]
[327691385,1716319846466,-500.0,0.00030684,6]
[327691387,1716319846478,-500.0,0.00030684,6]
[327691389,1716319846489,-500.0,0.00030684,6]
[327691391,1716319846500,-500.0,0.00030684,6]
[327691393,1716319846512,-641.67,0.00030684,6]
[327691395,1716319846524,-500.0,0.00030684,6]
[327691397,1716319846537,-500.0,0.00030684,6]
[327691399,1716319846548,-592.21,0.00030684,6]
[327691400,1716319846563,-500.0,0.00030684,6]
[327691401,1716319846575,-500.0,0.00030684,6]
[327691402,1716319846587,-500.0,0.00030684,6]
[327691403,1716319846600,-500.0,0.00030684,6]
[327691404,1716319846612,-500.18,0.00030684,6]
[327691405,1716319846624,-500.0,0.00030684,6]
[327691406,1716319846636,-792.17,0.00030684,6]
[327691407,1716319846649,-500.0,0.00030684,6]
[327691408,1716319846662,-873.14,0.00030684,6]
[327691409,1716319846675,-686.96,0.00030684,6]
[327691410,1716319846687,-539.2,0.00030684,6]
[327691411,1716319846699,-813.32,0.00030684,6]
[327691412,1716319846711,-500.0,0.00030684,6]
[327691413,1716319846722,-500.0,0.00030684,6]
[327691414,1716319846733,-500.0,0.00030684,6]
[327691415,1716319846745,-500.0,0.00030684,6]
[327691416,1716319846757,-500.0,0.00030684,6]
[327691417,1716319846769,-500.0,0.00030684,6]
[327691418,1716319846782,-920.21,0.00030684,6]
[327691419,1716319846794,-557.19,0.00030684,6]
[327691420,1716319846806,-500.0,0.00030684,6]
[327691421,1716319846817,-500.0,0.00030684,6]
[327691422,1716319846829,-500.0,0.00030684,6]
[327691423,1716319846839,-671.12,0.00030684,6]
[327691424,1716319846849,-580.09339585,0.00030684,6]
[327691425,1716319846859,-523.42,0.00030684,6]
[327691426,1716319846870,-500.0,0.00030684,6]